{"text_format":"1","workbook":"xlsx","n_sheets":2,"sheets":["09.12.2016","10.12.2016"],"not_rendered":{"charts":0,"images":0,"macros":0,"external_links":0,"defined_names":3,"comments":0,"pivot_tables":0},"unopened":[],"bounds":{"document_bytes":16777216,"sheet_cells":100000,"rows_first":2000,"rows_last":500,"rows_between":2000,"halvings":0,"cell_chars":16384,"cell_head_chars":4096},"cells_cut":0,"cells_raw":0,"read":"whole","date_system":"1900"}

{"sheet":"09.12.2016","index":0,"n_rows":39,"n_cols":12,"rows_kept":39,"cut":false,"hidden":false,"merged":[[26,0,26,1],[36,0,36,1]]}
["Название","Цена (розн.)","Количество товара на  начало смены","Возврат товара на склад","Продано через КАССУ","Передано \"Аксиомус\"","Передано \"DPD\"","Всего продано (шт.)","Количество товара на  конец смены","В кассе наличных (руб.)","Выбито чеков за товар на сумму","Выручка (общ.)"]
["Серия ELLE BY BEURER"]
["Зеркало Beurer FCE79 косметическое",3800,100,2,3,3,2,{"$f":"E3+F3+G3","v":8},{"$f":"C3-H3+D3","v":94},{"$f":"B3*E3","v":11400},{"$f":"(E3*B3)+(F3*B3)","v":22800},{"$f":"H3*B3","v":30400}]
["Зеркало Beurer BS05 косметическое",570,null,null,null,null,null,0,null,0,0,0]
["Маникюрный набор МР05",890,null,null,null,null,null,0,null,0,0,0]
["Маникюрно-педикюрный набор Beurer MPE60 (9 насадок)",3800,null,null,null,null,null,0,null,0,0,0]
["Маникюрно-педикюрный набор Beurer MPE100 (10 насадок)",9500,null,null,null,null,null,0,null,0,0,0]
["Прибор для удаления мозолей Beurer MPE50",2900,null,null,null,null,null,0,null,0,0,0]
["Эпилятор HLE60",3000,null,null,null,null,null,0,null,0,0,0]
["Прибор для сушки ногтей Beurer MPE58",4100,null,null,null,null,null,0,null,0,0,0]
["Массажная щетка для лица Beurer FCE60",2350,null,null,null,null,null,0,null,0,0,0]
["Фен для волос Beurer HDE30",1850,null,null,null,null,null,0,null,0,0,0]
["Мультистайлер для волос BEURER HTE50",2000,null,null,null,null,null,0,null,0,0,0]
["Парафиновая ванночка Beurer MPE70",3100,null,null,null,null,null,0,null,0,0,0]
["Электробритва женская BEURER HLE30",2250,null,null,null,null,null,0,null,0,0,0]
["Прибор для удаления волос воском BEURER HLE40",2565,null,null,null,null,null,0,null,0,0,0]
["Расходные и перевязочные материалы"]
["Мочеприемник носимый ножной Люкс 750 мл, длина трубки 28 см, Apexmed",225,null,null,null,null,null,{"$f":"E18+F18+G18","v":0},null,{"$f":"B18*E18","v":0},{"$f":"(E18*B18)+(F18*B18)","v":0},{"$f":"H18*B18","v":0}]
["Мочеприемник носимый ножной Люкс 750 мл, длина трубки 50 см, Apexmed",155,null,null,null,null,null,0,null,0,0,0]
["Мочеприемник прикроватный 1000 мл, Apexmed",41,null,null,null,null,null,0,null,0,0,0]
["Мочеприемник прикроватный 2000 мл, Apexmed",44,null,null,null,null,null,0,null,0,0,0]
["Мочеприемник прикроватный Люкс 2000 мл, Apexmed",192,null,null,null,null,null,0,null,0,0,0]
["Катетер для самокатетеризации мужской лубрицированный Coloplast EasiCath 12 разм",80,null,null,null,null,null,0,null,0,0,0]
[]
[]
[]
["ВСЕГО:",null,null,null,{"$f":"SUM(E3:E26)","v":3},{"$f":"SUM(F3:F26)","v":3},{"$f":"SUM(G3:G26)","v":2},{"$f":"SUM(H3:H26)","v":8},null,{"$f":"SUM(J3:J26)+E37","v":11400},{"$f":"SUM(K3:K26)","v":22800},{"$f":"SUM(L3:L26)+L37","v":31050}]
[null,"Цена (розн.)",null,null,"Продано через КАССУ","Передано \"Аксиомус\"","Передано \"DPD\"","Всего продано (шт.)",null,"В кассе наличных (руб.)","Выбито чеков за товар на сумму","Выручка (общ.)"]
[]
["Доставка",null,null,null,"Экспресс доставка",null,null,"доставка \"Аксиомус\""]
["Доставка ",100,null,null,null,null,null,null,null,null,null,{"$f":"B31*(H31+E31)","v":0}]
["Доставка ",300,null,null,null,null,null,1,null,null,null,300]
["Доставка",350,null,null,null,null,null,1,null,null,null,350]
["Доставка ",400,null,null,null,null,null,null,null,null,null,0]
["Доставка ",550,null,null,null,null,null,null,null,null,null,0]
["Доставка ",800,null,null,null,null,null,null,null,null,null,0]
["ВСЕГО:",null,null,null,{"$f":"(E31*B31)+(E32*B32)+(E33*B33)+(E34*B34)+(E35*B35)+(E36*B36)","v":0},null,null,{"$f":"(H31*B31)+(H32*B32)+(H33*B33)+(H34*B34)+(H35*B35)+(H36*B36)","v":650},null,null,null,{"$f":"SUM(L31:L36)","v":650}]
[]
[null,null,null,null,null,null,null,null,null,"Z-ОТЧЕТ",null,{"$f":"K27+L37","v":23450}]

{"sheet":"10.12.2016","index":1,"n_rows":39,"n_cols":12,"rows_kept":39,"cut":false,"hidden":false,"merged":[[26,0,26,1],[36,0,36,1]]}
["Название","Цена (розн.)","Количество товара на  начало смены","Возврат товара на склад","Продано через КАССУ","Передано \"Аксиомус\"","Передано \"DPD\"","Всего продано (шт.)","Количество товара на  конец смены","В кассе наличных (руб.)","Выбито чеков за товар на сумму","Выручка (общ.)"]
["Серия ELLE BY BEURER"]
["Зеркало Beurer FCE79 косметическое",3800,{"$f":"VLOOKUP(A3,cc,9)","v":0},1,1,1,1,{"$f":"E3+F3+G3","v":3},{"$f":"C3-H3+D3","v":-2},{"$f":"B3*E3","v":3800},{"$f":"(E3*B3)+(F3*B3)","v":7600},{"$f":"H3*B3","v":11400}]
["Зеркало Beurer BS05 косметическое",570,null,null,null,null,null,0,null,0,0,0]
["Маникюрный набор МР05",890,null,null,null,null,null,0,null,0,0,0]
["Маникюрно-педикюрный набор Beurer MPE60 (9 насадок)",3800,null,null,null,null,null,0,null,0,0,0]
["Маникюрно-педикюрный набор Beurer MPE100 (10 насадок)",9500,null,null,null,null,null,0,null,0,0,0]
["Прибор для удаления мозолей Beurer MPE50",2900,null,null,null,null,null,0,null,0,0,0]
["Эпилятор HLE60",3000,null,null,null,null,null,0,null,0,0,0]
["Прибор для сушки ногтей Beurer MPE58",4100,null,null,null,null,null,0,null,0,0,0]
["Массажная щетка для лица Beurer FCE60",2350,null,null,null,null,null,0,null,0,0,0]
["Фен для волос Beurer HDE30",1850,null,null,null,null,null,0,null,0,0,0]
["Мультистайлер для волос BEURER HTE50",2000,null,null,null,null,null,0,null,0,0,0]
["Парафиновая ванночка Beurer MPE70",3100,null,null,null,null,null,0,null,0,0,0]
["Электробритва женская BEURER HLE30",2250,null,null,null,null,null,0,null,0,0,0]
["Прибор для удаления волос воском BEURER HLE40",2565,null,null,null,null,null,0,null,0,0,0]
["Расходные и перевязочные материалы"]
["Мочеприемник носимый ножной Люкс 750 мл, длина трубки 28 см, Apexmed",225,null,null,null,null,null,{"$f":"E18+F18+G18","v":0},null,{"$f":"B18*E18","v":0},{"$f":"(E18*B18)+(F18*B18)","v":0},{"$f":"H18*B18","v":0}]
["Мочеприемник носимый ножной Люкс 750 мл, длина трубки 50 см, Apexmed",155,null,null,null,null,null,0,null,0,0,0]
["Мочеприемник прикроватный 1000 мл, Apexmed",41,null,null,null,null,null,0,null,0,0,0]
["Мочеприемник прикроватный 2000 мл, Apexmed",44,null,null,null,null,null,0,null,0,0,0]
["Мочеприемник прикроватный Люкс 2000 мл, Apexmed",192,null,null,null,null,null,0,null,0,0,0]
["Катетер для самокатетеризации мужской лубрицированный Coloplast EasiCath 12 разм",80,null,null,null,null,null,0,null,0,0,0]
[]
[]
[]
["ВСЕГО:",null,null,null,{"$f":"SUM(E3:E26)","v":1},{"$f":"SUM(F3:F26)","v":1},{"$f":"SUM(G3:G26)","v":1},{"$f":"SUM(H3:H26)","v":3},null,{"$f":"SUM(J3:J26)+E37","v":3800},{"$f":"SUM(K3:K26)","v":7600},{"$f":"SUM(L3:L26)+L37","v":12050}]
[null,"Цена (розн.)",null,null,"Продано через КАССУ","Передано \"Аксиомус\"","Передано \"DPD\"","Всего продано (шт.)",null,"В кассе наличных (руб.)","Выбито чеков за товар на сумму","Выручка (общ.)"]
[]
["Доставка",null,null,null,"Экспресс доставка",null,null,"доставка \"Аксиомус\""]
["Доставка ",100,null,null,null,null,null,null,null,null,null,{"$f":"B31*(H31+E31)","v":0}]
["Доставка ",300,null,null,null,null,null,1,null,null,null,300]
["Доставка",350,null,null,null,null,null,1,null,null,null,350]
["Доставка ",400,null,null,null,null,null,null,null,null,null,0]
["Доставка ",550,null,null,null,null,null,null,null,null,null,0]
["Доставка ",800,null,null,null,null,null,null,null,null,null,0]
["ВСЕГО:",null,null,null,{"$f":"(E31*B31)+(E32*B32)+(E33*B33)+(E34*B34)+(E35*B35)+(E36*B36)","v":0},null,null,{"$f":"(H31*B31)+(H32*B32)+(H33*B33)+(H34*B34)+(H35*B35)+(H36*B36)","v":650},null,null,null,{"$f":"SUM(L31:L36)","v":650}]
[]
[null,null,null,null,null,null,null,null,null,"Z-ОТЧЕТ",null,{"$f":"K27+L37","v":8250}]